[Event "*** Titled Tuesday Blitz"]
[Site "Chess.com"]
[Date "2019.07.02"]
[Round "7"]
[White "maximnovik"]
[Black "731291"]
[Result "0-1"]
[WhiteElo "2472"]
[BlackElo "2673"]
[TimeControl "180+2"]
[EndTime "14:34:51 PDT"]
[Termination "731291 won on time"]

1. c4 {[%clk 0:02:59]} 1... e5 {[%clk 0:02:59.2]} 2. g3 {[%clk 0:02:59.4]} 2...
d6 {[%clk 0:02:59.7]} 3. Bg2 {[%clk 0:03:00.2]} 3... Be7 {[%clk 0:03:00.7]} 4.
Nc3 {[%clk 0:03:00.7]} 4... f5 {[%clk 0:03:02.1]} 5. d4 {[%clk 0:03:00]} 5...
Nf6 {[%clk 0:03:03]} 6. dxe5 {[%clk 0:02:58.3]} 6... dxe5 {[%clk 0:03:04.9]} 7.
Qxd8+ {[%clk 0:02:59.2]} 7... Bxd8 {[%clk 0:03:06.6]} 8. Nf3 {[%clk 0:02:55.6]}
8... e4 {[%clk 0:03:07.6]} 9. Nd4 {[%clk 0:02:55.5]} 9... c6 {[%clk 0:03:08.2]}
10. f3 {[%clk 0:02:45.4]} 10... O-O {[%clk 0:02:57.9]} 11. fxe4 {[%clk
0:02:44.2]} 11... Nxe4 {[%clk 0:02:56.9]} 12. Nxe4 {[%clk 0:02:44.1]} 12... fxe4
{[%clk 0:02:58.8]} 13. Bxe4 {[%clk 0:02:44.2]} 13... Bb6 {[%clk 0:02:49.4]} 14.
Nb3 {[%clk 0:02:21.2]} 14... Bf2+ {[%clk 0:02:42.8]} 15. Kd1 {[%clk 0:02:22.1]}
15... Nd7 {[%clk 0:02:27.9]} 16. Kc2 {[%clk 0:02:18.3]} 16... Ne5 {[%clk
0:02:19.5]} 17. Nd2 {[%clk 0:01:47.2]} 17... Bg4 {[%clk 0:02:12.6]} 18. Bd3
{[%clk 0:01:35.6]} 18... Rae8 {[%clk 0:02:00.6]} 19. b3 {[%clk 0:01:31.2]} 19...
c5 {[%clk 0:02:01.5]} 20. Bb2 {[%clk 0:01:29.9]} 20... Nc6 {[%clk 0:02:02.8]}
21. Bc3 {[%clk 0:00:33]} 21... Bxe2 {[%clk 0:01:58.7]} 22. Bxe2 {[%clk
0:00:31.8]} 22... Rxe2 {[%clk 0:02:00.6]} 23. Rhf1 {[%clk 0:00:32.5]} 23... Rd8
{[%clk 0:01:42.6]} 24. Rad1 {[%clk 0:00:21.7]} 24... Nb4+ {[%clk 0:01:15.9]} 25.
Bxb4 {[%clk 0:00:21.3]} 25... cxb4 {[%clk 0:01:17.8]} 26. a3 {[%clk 0:00:03.5]}
26... Be3 {[%clk 0:01:17]} 27. axb4 {[%clk 0:00:04.2]} 27... Bxd2 {[%clk
0:01:05.4]} 0-1

[Event "*** Titled Tuesday Blitz"]
[Site "Chess.com"]
[Date "2019.07.02"]
[Round "7"]
[White "Bagirova"]
[Black "ethylalcohol"]
[Result "0-1"]
[WhiteElo "1907"]
[BlackElo "2096"]
[TimeControl "180+2"]
[EndTime "14:34:58 PDT"]
[Termination "ethylalcohol won by resignation"]

1. e4 {[%clk 0:03:01]} 1... e6 {[%clk 0:03:00.4]} 2. d4 {[%clk 0:02:59.7]} 2...
d5 {[%clk 0:03:00.9]} 3. Nd2 {[%clk 0:02:58.2]} 3... c5 {[%clk 0:03:01.6]} 4.
exd5 {[%clk 0:02:57.1]} 4... Qxd5 {[%clk 0:03:01.8]} 5. Ngf3 {[%clk 0:02:57.5]}
5... Nf6 {[%clk 0:02:59.1]} 6. Bc4 {[%clk 0:02:58.5]} 6... Qd6 {[%clk
0:02:59.4]} 7. O-O {[%clk 0:02:59.5]} 7... cxd4 {[%clk 0:02:58.9]} 8. Nb3 {[%clk
0:03:00.3]} 8... Nc6 {[%clk 0:03:00.2]} 9. Bb5 {[%clk 0:02:55.3]} 9... Bd7
{[%clk 0:02:49.7]} 10. Bxc6 {[%clk 0:02:47.5]} 10... Bxc6 {[%clk 0:02:45.1]} 11.
Nbxd4 {[%clk 0:02:45.4]} 11... Rd8 {[%clk 0:02:36.3]} 12. Be3 {[%clk 0:02:44.5]}
12... Be7 {[%clk 0:02:02]} 13. Qe2 {[%clk 0:02:39.2]} 13... O-O {[%clk
0:01:39.8]} 14. Rad1 {[%clk 0:02:34]} 14... Nd5 {[%clk 0:01:34.4]} 15. Bg5
{[%clk 0:02:06.9]} 15... Bxg5 {[%clk 0:01:24.7]} 16. Nxg5 {[%clk 0:02:05.7]}
16... Nf4 {[%clk 0:01:23.3]} 17. Qg4 {[%clk 0:01:53.3]} 17... h5 {[%clk
0:01:18.2]} 18. Qg3 {[%clk 0:01:35.4]} 18... Qxd4 {[%clk 0:01:15.5]} 19. Rxd4
{[%clk 0:00:22.3]} 19... Ne2+ {[%clk 0:01:14.2]} 20. Kh1 {[%clk 0:00:23.6]}
20... Nxg3+ {[%clk 0:01:14.9]} 21. hxg3 {[%clk 0:00:19.6]} 21... Rxd4 {[%clk
0:01:15.6]} 22. f4 {[%clk 0:00:20.1]} 22... Rd2 {[%clk 0:01:15.6]} 23. Rg1
{[%clk 0:00:19.3]} 23... Rfd8 {[%clk 0:01:15.7]} 24. f5 {[%clk 0:00:20.1]} 24...
exf5 {[%clk 0:01:10.5]} 25. Nh3 {[%clk 0:00:20.9]} 25... Rxc2 {[%clk 0:01:09.5]}
26. Nf4 {[%clk 0:00:15.7]} 26... g6 {[%clk 0:01:09.3]} 27. Re1 {[%clk
0:00:14.5]} 27... Re8 {[%clk 0:01:04.5]} 28. Rd1 {[%clk 0:00:13.5]} 28... Rxb2
{[%clk 0:01:01]} 0-1

[Event "*** Titled Tuesday Blitz"]
[Site "Chess.com"]
[Date "2019.07.02"]
[Round "7"]
[White "dopolian"]
[Black "HanSchut"]
[Result "1-0"]
[WhiteElo "2344"]
[BlackElo "2211"]
[TimeControl "180+2"]
[EndTime "14:35:05 PDT"]
[Termination "dopolian won by resignation"]

1. e4 {[%clk 0:03:01.9]} 1... c5 {[%clk 0:03:00.1]} 2. Nf3 {[%clk 0:03:03]} 2...
d6 {[%clk 0:03:01.5]} 3. d4 {[%clk 0:03:04.5]} 3... cxd4 {[%clk 0:03:03.2]} 4.
Nxd4 {[%clk 0:03:06.4]} 4... Nf6 {[%clk 0:03:04.3]} 5. Nc3 {[%clk 0:03:08]} 5...
a6 {[%clk 0:03:03.9]} 6. g3 {[%clk 0:03:09.3]} 6... g6 {[%clk 0:03:04.5]} 7. Bg2
{[%clk 0:03:10]} 7... Bg7 {[%clk 0:03:06.2]} 8. O-O {[%clk 0:03:11.4]} 8... O-O
{[%clk 0:03:07.9]} 9. a4 {[%clk 0:03:12.1]} 9... Nc6 {[%clk 0:03:09]} 10. Be3
{[%clk 0:03:04.7]} 10... Bd7 {[%clk 0:03:08.9]} 11. h3 {[%clk 0:03:03.8]} 11...
Rc8 {[%clk 0:03:08]} 12. f4 {[%clk 0:02:56.7]} 12... Na5 {[%clk 0:03:08.3]} 13.
Bf2 {[%clk 0:02:52.8]} 13... Nc4 {[%clk 0:03:07.3]} 14. b3 {[%clk 0:02:48.3]}
14... Na5 {[%clk 0:02:37]} 15. Nd5 {[%clk 0:02:38.4]} 15... Nxd5 {[%clk
0:02:26.7]} 16. exd5 {[%clk 0:02:40.3]} 16... Qc7 {[%clk 0:02:21]} 17. c4 {[%clk
0:02:30.2]} 17... b6 {[%clk 0:01:53]} 18. Qf3 {[%clk 0:02:13.4]} 18... Rb8
{[%clk 0:01:34.2]} 19. Rac1 {[%clk 0:02:09.7]} 19... Nb7 {[%clk 0:01:21.4]} 20.
Rfe1 {[%clk 0:01:53.9]} 20... Rfe8 {[%clk 0:01:02.8]} 21. Nc6 {[%clk 0:01:37.2]}
21... Bxc6 {[%clk 0:01:00.2]} 22. dxc6 {[%clk 0:01:38.4]} 22... Nd8 {[%clk
0:00:54.3]} 23. b4 {[%clk 0:01:32.5]} 23... b5 {[%clk 0:00:47.5]} 24. cxb5
{[%clk 0:01:25.9]} 24... axb5 {[%clk 0:00:49.4]} 25. a5 {[%clk 0:01:27.2]} 25...
e6 {[%clk 0:00:50.2]} 26. Kh2 {[%clk 0:01:16.5]} 26... d5 {[%clk 0:00:50.8]} 27.
Bb6 {[%clk 0:01:03]} 27... Rxb6 {[%clk 0:00:49.5]} 28. axb6 {[%clk 0:01:04.2]}
28... Qxb6 {[%clk 0:00:51.4]} 29. c7 {[%clk 0:01:05.4]} 29... Nc6 {[%clk
0:00:45.1]} 30. Qxd5 {[%clk 0:00:58.8]} 30... Nxb4 {[%clk 0:00:26.3]} 31. c8=Q
{[%clk 0:00:53.7]} 31... Rxc8 {[%clk 0:00:17.2]} 32. Rxc8+ {[%clk 0:00:53.3]}
32... Bf8 {[%clk 0:00:18.8]} 33. Qd8 {[%clk 0:00:47.1]} 1-0

[Event "*** Titled Tuesday Blitz"]
[Site "Chess.com"]
[Date "2019.07.02"]
[Round "7"]
[White "andrzej"]
[Black "Yoshkinkot"]
[Result "0-1"]
[WhiteElo "2335"]
[BlackElo "2544"]
[TimeControl "180+2"]
[EndTime "14:35:19 PDT"]
[Termination "Yoshkinkot won by checkmate"]

1. d4 {[%clk 0:03:01.9]} 1... d5 {[%clk 0:02:58.8]} 2. c4 {[%clk 0:03:01.9]}
2... e5 {[%clk 0:03:00.3]} 3. dxe5 {[%clk 0:03:01.1]} 3... d4 {[%clk 0:03:01.6]}
4. Nf3 {[%clk 0:03:02.2]} 4... Nc6 {[%clk 0:03:03]} 5. a3 {[%clk 0:03:03.3]}
5... a5 {[%clk 0:03:03]} 6. Nbd2 {[%clk 0:03:03.2]} 6... Bf5 {[%clk 0:03:01.2]}
7. Nb3 {[%clk 0:02:58.9]} 7... Qd7 {[%clk 0:02:27]} 8. Nbxd4 {[%clk 0:02:58.6]}
8... Rd8 {[%clk 0:02:25.2]} 9. Be3 {[%clk 0:02:16.5]} 9... Be4 {[%clk
0:02:17.5]} 10. Qd2 {[%clk 0:01:44.9]} 10... Bxf3 {[%clk 0:01:55.5]} 11. Nxf3
{[%clk 0:01:40.2]} 11... Qf5 {[%clk 0:01:53.2]} 12. Qc3 {[%clk 0:01:33.4]} 12...
Nb4 {[%clk 0:01:45.4]} 13. Nd4 {[%clk 0:01:00.8]} 13... Rxd4 {[%clk 0:01:40.6]}
14. Bxd4 {[%clk 0:01:02.7]} 14... Nc2+ {[%clk 0:01:38.6]} 15. Kd2 {[%clk
0:01:02.4]} 15... Nxa1 {[%clk 0:01:39.6]} 16. e4 {[%clk 0:00:33.3]} 16... Qxe4
{[%clk 0:01:34.4]} 17. Bd3 {[%clk 0:00:34.1]} 17... Qxd4 {[%clk 0:01:27.3]} 18.
Qxd4 {[%clk 0:00:28]} 18... Nb3+ {[%clk 0:01:27.7]} 19. Kc3 {[%clk 0:00:29.6]}
19... Nxd4 {[%clk 0:01:28.6]} 20. Kxd4 {[%clk 0:00:31.5]} 20... Ne7 {[%clk
0:01:29.1]} 21. f4 {[%clk 0:00:26.6]} 21... Nc6+ {[%clk 0:01:29.8]} 22. Ke3
{[%clk 0:00:24.2]} 22... Bc5+ {[%clk 0:01:31]} 23. Ke4 {[%clk 0:00:25.4]} 23...
Ke7 {[%clk 0:01:32.2]} 24. f5 {[%clk 0:00:21.4]} 24... Rd8 {[%clk 0:01:30]} 25.
Bb1 {[%clk 0:00:15.7]} 25... Rd4+ {[%clk 0:01:30.3]} 26. Kf3 {[%clk 0:00:16.8]}
26... Nxe5+ {[%clk 0:01:31.7]} 27. Kg3 {[%clk 0:00:18.3]} 27... Rg4+ {[%clk
0:01:31.7]} 28. Kh3 {[%clk 0:00:19.4]} 28... Rxc4 {[%clk 0:01:33.1]} 29. Re1
{[%clk 0:00:19.4]} 29... Kf6 {[%clk 0:01:34.3]} 30. g3 {[%clk 0:00:15.6]} 30...
h5 {[%clk 0:01:33.8]} 31. Kg2 {[%clk 0:00:15.3]} 31... Rd4 {[%clk 0:01:33.9]}
32. Rc1 {[%clk 0:00:14.1]} 32... Rd2+ {[%clk 0:01:34.8]} 33. Kh3 {[%clk
0:00:10]} 33... Nf3 {[%clk 0:01:29.6]} 34. Rh1 {[%clk 0:00:10]} 34... g5 {[%clk
0:01:15.6]} 35. fxg6 {[%clk 0:00:09.4]} 35... fxg6 {[%clk 0:01:15]} 36. b4
{[%clk 0:00:04.8]} 36... Ng5+ {[%clk 0:01:13.9]} 37. Kh4 {[%clk 0:00:05.3]}
37... Rd4+ {[%clk 0:01:15.6]} 38. g4 {[%clk 0:00:05.6]} 38... Rxg4# {[%clk
0:01:17.2]} 0-1

[Event "*** Titled Tuesday Blitz"]
[Site "Chess.com"]
[Date "2019.07.02"]
[Round "7"]
[White "Mbneu"]
[Black "pedromartinez91"]
[Result "0-1"]
[WhiteElo "2324"]
[BlackElo "2432"]
[TimeControl "180+2"]
[EndTime "14:35:21 PDT"]
[Termination "pedromartinez91 won on time"]

1. d4 {[%clk 0:03:01.9]} 1... e6 {[%clk 0:03:01.2]} 2. c4 {[%clk 0:03:02.4]}
2... c5 {[%clk 0:03:00.5]} 3. d5 {[%clk 0:03:02.9]} 3... b5 {[%clk 0:03:01.7]}
4. a4 {[%clk 0:02:55.8]} 4... bxc4 {[%clk 0:03:01.1]} 5. e4 {[%clk 0:02:51.7]}
5... Nf6 {[%clk 0:03:01.2]} 6. Nc3 {[%clk 0:02:50.7]} 6... exd5 {[%clk
0:03:00.5]} 7. exd5 {[%clk 0:02:51.2]} 7... d6 {[%clk 0:03:00.3]} 8. Bxc4 {[%clk
0:02:50.7]} 8... Be7 {[%clk 0:03:01.6]} 9. Nge2 {[%clk 0:02:46.7]} 9... Ba6
{[%clk 0:03:02.6]} 10. Bb5+ {[%clk 0:02:46.3]} 10... Nfd7 {[%clk 0:02:59.2]} 11.
O-O {[%clk 0:02:39.5]} 11... O-O {[%clk 0:03:00.7]} 12. Bf4 {[%clk 0:02:37.3]}
12... Nf6 {[%clk 0:02:51.6]} 13. Ng3 {[%clk 0:02:34]} 13... g6 {[%clk
0:02:51.3]} 14. Re1 {[%clk 0:02:31.9]} 14... Bxb5 {[%clk 0:02:52.2]} 15. axb5
{[%clk 0:02:28.8]} 15... Nbd7 {[%clk 0:02:52.5]} 16. h4 {[%clk 0:02:09.7]} 16...
Re8 {[%clk 0:02:50.4]} 17. h5 {[%clk 0:02:09.2]} 17... Bf8 {[%clk 0:02:37]} 18.
Rxe8 {[%clk 0:01:54]} 18... Qxe8 {[%clk 0:02:30.3]} 19. hxg6 {[%clk 0:01:54.5]}
19... hxg6 {[%clk 0:02:32.2]} 20. Qd2 {[%clk 0:01:49.7]} 20... Qc8 {[%clk
0:02:25.7]} 21. Nge4 {[%clk 0:01:39.1]} 21... Qc7 {[%clk 0:02:20.1]} 22. Ra6
{[%clk 0:01:36.3]} 22... Ne8 {[%clk 0:02:16.9]} 23. Rc6 {[%clk 0:01:33.3]} 23...
Qb8 {[%clk 0:02:13.4]} 24. Nxc5 {[%clk 0:01:18]} 24... Nxc5 {[%clk 0:02:11.6]}
25. Rxc5 {[%clk 0:01:19.2]} 25... Nc7 {[%clk 0:02:05.5]} 26. Rc6 {[%clk
0:01:07.8]} 26... Nxb5 {[%clk 0:02:06.2]} 27. Ne4 {[%clk 0:00:56.4]} 27... Bg7
{[%clk 0:02:04.8]} 28. b4 {[%clk 0:00:41.8]} 28... a5 {[%clk 0:01:47.2]} 29.
bxa5 {[%clk 0:00:34.7]} 29... Nd4 {[%clk 0:01:47.8]} 30. Rc1 {[%clk 0:00:21.3]}
30... Qb5 {[%clk 0:01:48.4]} 31. Nxd6 {[%clk 0:00:18.2]} 31... Qxd5 {[%clk
0:01:49.2]} 32. Nc4 {[%clk 0:00:09.9]} 32... Rc8 {[%clk 0:01:47.3]} 33. a6
{[%clk 0:00:06.7]} 33... Rxc4 {[%clk 0:01:46.9]} 34. Rxc4 {[%clk 0:00:07.3]}
34... Qxc4 {[%clk 0:01:48.8]} 35. a7 {[%clk 0:00:07.8]} 35... Qa6 {[%clk
0:01:49.1]} 36. Bb8 {[%clk 0:00:07.7]} 36... Kh7 {[%clk 0:01:39.7]} 37. Kh2
{[%clk 0:00:06.8]} 37... Nc6 {[%clk 0:01:37.1]} 38. Qd7 {[%clk 0:00:03.4]} 38...
Ne5 {[%clk 0:01:23.5]} 0-1

[Event "*** Titled Tuesday Blitz"]
[Site "Chess.com"]
[Date "2019.07.02"]
[Round "7"]
[White "DenisQ"]
[Black "kosmeg"]
[Result "0-1"]
[WhiteElo "2617"]
[BlackElo "2471"]
[TimeControl "180+2"]
[EndTime "14:35:30 PDT"]
[Termination "kosmeg won by resignation"]

1. Nf3 {[%clk 0:03:01.9]} 1... d5 {[%clk 0:03:00.7]} 2. c4 {[%clk 0:03:00.6]}
2... d4 {[%clk 0:03:01.4]} 3. g3 {[%clk 0:03:00.8]} 3... Nc6 {[%clk 0:03:02]} 4.
Bg2 {[%clk 0:03:01.5]} 4... e5 {[%clk 0:03:03.5]} 5. O-O {[%clk 0:03:02.1]} 5...
e4 {[%clk 0:03:03.5]} 6. Ne1 {[%clk 0:03:02.7]} 6... h5 {[%clk 0:02:51.2]} 7.
Bxe4 {[%clk 0:03:02.9]} 7... h4 {[%clk 0:02:51.9]} 8. d3 {[%clk 0:03:03.4]} 8...
Nf6 {[%clk 0:02:50.5]} 9. Bg5 {[%clk 0:03:03.3]} 9... hxg3 {[%clk 0:02:46.2]}
10. fxg3 {[%clk 0:03:03.5]} 10... Be7 {[%clk 0:02:46.7]} 11. Bxf6 {[%clk
0:03:03.8]} 11... Bxf6 {[%clk 0:02:47.8]} 12. Nd2 {[%clk 0:03:04]} 12... Bh3
{[%clk 0:02:35.3]} 13. Ng2 {[%clk 0:03:01.4]} 13... Qd7 {[%clk 0:02:26.1]} 14.
Qa4 {[%clk 0:03:01.4]} 14... Bg5 {[%clk 0:02:10.9]} 15. Nf3 {[%clk 0:02:47.7]}
15... Bxg2 {[%clk 0:01:19.4]} 16. Kxg2 {[%clk 0:02:32.3]} 16... Be3 {[%clk
0:01:05.9]} 17. h4 {[%clk 0:02:23.5]} 17... f6 {[%clk 0:00:41.2]} 18. Qb5 {[%clk
0:02:18.4]} 18... Rd8 {[%clk 0:00:23.2]} 19. Qxb7 {[%clk 0:02:15.9]} 19... Ne7
{[%clk 0:00:22.9]} 20. Qxa7 {[%clk 0:01:59.6]} 20... f5 {[%clk 0:00:18.3]} 21.
Bd5 {[%clk 0:01:53.9]} 21... Nxd5 {[%clk 0:00:16.1]} 22. cxd5 {[%clk 0:01:54.5]}
22... f4 {[%clk 0:00:16.9]} 23. Qa6 {[%clk 0:01:43.9]} 23... Qxd5 {[%clk
0:00:13.6]} 24. Qg6+ {[%clk 0:01:43.4]} 24... Kf8 {[%clk 0:00:13.7]} 25. Kh3
{[%clk 0:01:30.3]} 25... Rd6 {[%clk 0:00:13.9]} 26. Qg5 {[%clk 0:01:30.9]} 26...
Qe6+ {[%clk 0:00:13.1]} 27. g4 {[%clk 0:01:28.9]} 27... Rd5 {[%clk 0:00:07.7]}
28. Nxd4 {[%clk 0:01:23.4]} 28... Rxd4 {[%clk 0:00:08.6]} 29. Rac1 {[%clk
0:01:17.9]} 29... Rd5 {[%clk 0:00:07.9]} 30. Rxf4+ {[%clk 0:01:17.6]} 30... Bxf4
{[%clk 0:00:09]} 31. Qxf4+ {[%clk 0:01:18.6]} 31... Qf6 {[%clk 0:00:09.7]} 32.
Qg3 {[%clk 0:01:14]} 32... Kg8 {[%clk 0:00:09.6]} 33. Rxc7 {[%clk 0:01:13.4]}
33... Kh7 {[%clk 0:00:11]} 34. Rc4 {[%clk 0:01:09.3]} 34... Rf8 {[%clk
0:00:11.4]} 0-1

[Event "*** Titled Tuesday Blitz"]
[Site "Chess.com"]
[Date "2019.07.02"]
[Round "7"]
[White "Vamostodorecto"]
[Black "NemtsevIgor"]
[Result "0-1"]
[WhiteElo "2394"]
[BlackElo "2302"]
[TimeControl "180+2"]
[EndTime "14:35:30 PDT"]
[Termination "NemtsevIgor won by resignation"]

1. d4 {[%clk 0:03:01.9]} 1... c6 {[%clk 0:03:00.5]} 2. c4 {[%clk 0:03:02]} 2...
d6 {[%clk 0:03:01.4]} 3. Nc3 {[%clk 0:03:02]} 3... h6 {[%clk 0:03:02.4]} 4. e4
{[%clk 0:03:03.5]} 4... g5 {[%clk 0:03:02]} 5. h4 {[%clk 0:03:02.6]} 5... g4
{[%clk 0:03:02]} 6. Nge2 {[%clk 0:03:00.6]} 6... h5 {[%clk 0:03:00.9]} 7. Ng3
{[%clk 0:03:01.8]} 7... Bg7 {[%clk 0:03:00.8]} 8. Be3 {[%clk 0:03:01.4]} 8... a6
{[%clk 0:02:57.9]} 9. Nf5 {[%clk 0:02:55.2]} 9... Bxf5 {[%clk 0:02:58]} 10. exf5
{[%clk 0:02:57.1]} 10... Qa5 {[%clk 0:02:55.9]} 11. Bd3 {[%clk 0:02:56.9]} 11...
Nh6 {[%clk 0:02:53.5]} 12. Qc2 {[%clk 0:02:56.9]} 12... Nd7 {[%clk 0:02:53.3]}
13. O-O-O {[%clk 0:02:55.5]} 13... b5 {[%clk 0:02:53]} 14. Kb1 {[%clk
0:02:23.8]} 14... bxc4 {[%clk 0:02:43.7]} 15. Bxc4 {[%clk 0:02:22.1]} 15... Nxf5
{[%clk 0:02:38]} 16. Rhe1 {[%clk 0:01:57]} 16... Nxe3 {[%clk 0:02:25.2]} 17.
Rxe3 {[%clk 0:01:58.9]} 17... d5 {[%clk 0:02:06.1]} 18. Bxd5 {[%clk 0:01:48.7]}
18... cxd5 {[%clk 0:02:02.6]} 19. Qf5 {[%clk 0:01:45.1]} 19... Nf6 {[%clk
0:01:35.7]} 20. Rde1 {[%clk 0:01:26.7]} 20... O-O {[%clk 0:01:14.2]} 21. Rxe7
{[%clk 0:01:24]} 21... Rab8 {[%clk 0:01:12.3]} 22. R1e3 {[%clk 0:01:17.9]} 22...
Qb4 {[%clk 0:01:09.2]} 23. Qc2 {[%clk 0:01:01.8]} 23... Qxd4 {[%clk 0:01:04.4]}
24. R7e5 {[%clk 0:00:55.6]} 24... Ne4 {[%clk 0:00:52.9]} 25. Rxh5 {[%clk
0:00:34.5]} 25... Rfc8 {[%clk 0:00:31.3]} 26. Rg3 {[%clk 0:00:08.2]} 26... Nxc3+
{[%clk 0:00:25.1]} 27. Rxc3 {[%clk 0:00:10.1]} 27... Qxc3 {[%clk 0:00:23.1]} 28.
Qh7+ {[%clk 0:00:08.7]} 28... Kf8 {[%clk 0:00:24.3]} 29. Qh8+ {[%clk 0:00:08.5]}
29... Bxh8 {[%clk 0:00:24.1]} 30. Rxh8+ {[%clk 0:00:10.4]} 30... Qxh8 {[%clk
0:00:24.8]} 0-1

[Event "*** Titled Tuesday Blitz"]
[Site "Chess.com"]
[Date "2019.07.02"]
[Round "7"]
[White "MFBerna"]
[Black "Pechen_Yeltsina"]
[Result "0-1"]
[WhiteElo "2408"]
[BlackElo "2663"]
[TimeControl "180+2"]
[EndTime "14:35:33 PDT"]
[Termination "Pechen_Yeltsina won by resignation"]

1. e4 {[%clk 0:03:01.9]} 1... c5 {[%clk 0:03:00]} 2. Nf3 {[%clk 0:03:03]} 2...
d6 {[%clk 0:03:01.3]} 3. d4 {[%clk 0:03:04.9]} 3... cxd4 {[%clk 0:03:03.2]} 4.
Nxd4 {[%clk 0:03:06.8]} 4... Nf6 {[%clk 0:03:04.5]} 5. Nc3 {[%clk 0:03:08.3]}
5... a6 {[%clk 0:03:05.9]} 6. Be2 {[%clk 0:03:09.5]} 6... e5 {[%clk 0:03:06.7]}
7. Nb3 {[%clk 0:03:10.9]} 7... Be6 {[%clk 0:03:08.1]} 8. O-O {[%clk 0:03:12.3]}
8... Be7 {[%clk 0:03:09.5]} 9. a4 {[%clk 0:03:13.7]} 9... O-O {[%clk 0:03:07.9]}
10. f4 {[%clk 0:03:12]} 10... Nc6 {[%clk 0:02:48.3]} 11. Kh1 {[%clk 0:03:11]}
11... d5 {[%clk 0:02:44.9]} 12. f5 {[%clk 0:03:05.5]} 12... d4 {[%clk
0:02:38.6]} 13. fxe6 {[%clk 0:03:02.9]} 13... dxc3 {[%clk 0:02:39.8]} 14. exf7+
{[%clk 0:03:04.3]} 14... Kh8 {[%clk 0:02:35.4]} 15. Bd3 {[%clk 0:02:34.9]} 15...
cxb2 {[%clk 0:02:24.1]} 16. Bxb2 {[%clk 0:02:36.8]} 16... Rxf7 {[%clk
0:02:25.4]} 17. Qf3 {[%clk 0:02:15.2]} 17... Rf8 {[%clk 0:02:22.6]} 18. Qh3
{[%clk 0:02:05.2]} 18... Qc8 {[%clk 0:02:16.3]} 19. Qg3 {[%clk 0:01:47.8]} 19...
Nh5 {[%clk 0:02:08.2]} 20. Rxf8+ {[%clk 0:01:47.4]} 20... Qxf8 {[%clk
0:02:10.1]} 21. Qg4 {[%clk 0:01:43.7]} 21... Nf4 {[%clk 0:02:01.8]} 22. Rf1
{[%clk 0:01:35.4]} 22... Bf6 {[%clk 0:01:56.7]} 23. Qd7 {[%clk 0:01:11.9]} 23...
Nb4 {[%clk 0:01:39.7]} 24. Ba3 {[%clk 0:01:01.3]} 24... Nfxd3 {[%clk 0:01:12.5]}
25. cxd3 {[%clk 0:01:01.4]} 25... Qg8 {[%clk 0:01:13]} 26. Bxb4 {[%clk
0:00:32.9]} 26... Qxb3 {[%clk 0:01:12.7]} 27. Be7 {[%clk 0:00:34.1]} 27... Qf7
{[%clk 0:01:02.1]} 28. Rxf6 {[%clk 0:00:16.3]} 28... gxf6 {[%clk 0:01:02.5]} 29.
Qd6 {[%clk 0:00:09.4]} 29... Kg8 {[%clk 0:01:03]} 30. h3 {[%clk 0:00:05.5]}
30... Re8 {[%clk 0:00:55.4]} 31. Bxf6 {[%clk 0:00:05.4]} 31... Qe6 {[%clk
0:00:56.7]} 32. Qxe6+ {[%clk 0:00:03.6]} 32... Rxe6 {[%clk 0:00:58.6]} 33. Bd8
{[%clk 0:00:04.9]} 33... b5 {[%clk 0:00:59.7]} 34. axb5 {[%clk 0:00:05.2]} 34...
axb5 {[%clk 0:01:01.6]} 35. Ba5 {[%clk 0:00:06.6]} 35... Rd6 {[%clk 0:01:02.4]}
36. Kg1 {[%clk 0:00:04.7]} 0-1

[Event "*** Titled Tuesday Blitz"]
[Site "Chess.com"]
[Date "2019.07.02"]
[Round "7"]
[White "3f32"]
[Black "MathiasWomacka"]
[Result "0-1"]
[WhiteElo "2459"]
[BlackElo "2323"]
[TimeControl "180+2"]
[EndTime "14:35:43 PDT"]
[Termination "MathiasWomacka won by resignation"]

1. d4 {[%clk 0:03:01.9]} 1... Nf6 {[%clk 0:03:00.1]} 2. Nf3 {[%clk 0:03:02.1]}
2... e6 {[%clk 0:03:00.7]} 3. Bf4 {[%clk 0:03:01.3]} 3... c5 {[%clk 0:02:59.9]}
4. e3 {[%clk 0:03:01.8]} 4... d5 {[%clk 0:02:57.8]} 5. Nbd2 {[%clk 0:02:59.3]}
5... Bd6 {[%clk 0:02:57.6]} 6. Bg3 {[%clk 0:02:57.1]} 6... O-O {[%clk
0:02:54.8]} 7. c3 {[%clk 0:02:56.9]} 7... Qc7 {[%clk 0:02:53]} 8. Bd3 {[%clk
0:02:53.2]} 8... Nbd7 {[%clk 0:02:53.6]} 9. e4 {[%clk 0:02:28.7]} 9... cxd4
{[%clk 0:02:39.7]} 10. cxd4 {[%clk 0:02:27.4]} 10... dxe4 {[%clk 0:02:40.5]} 11.
Nxe4 {[%clk 0:02:27.6]} 11... Nxe4 {[%clk 0:02:40.2]} 12. Bxe4 {[%clk
0:02:26.2]} 12... Nf6 {[%clk 0:02:25.1]} 13. Bd3 {[%clk 0:02:23.1]} 13... Qa5+
{[%clk 0:02:18]} 14. Kf1 {[%clk 0:02:22.9]} 14... Bxg3 {[%clk 0:02:14.3]} 15.
hxg3 {[%clk 0:02:24.8]} 15... h6 {[%clk 0:02:14.1]} 16. Qe2 {[%clk 0:02:17.4]}
16... Bd7 {[%clk 0:02:12.1]} 17. Ne5 {[%clk 0:01:41]} 17... Rfd8 {[%clk
0:02:02.1]} 18. g4 {[%clk 0:01:32.4]} 18... Be8 {[%clk 0:02:02.4]} 19. g5 {[%clk
0:01:25.8]} 19... hxg5 {[%clk 0:02:02.7]} 20. Qe3 {[%clk 0:01:18.6]} 20... Bb5
{[%clk 0:01:45.8]} 21. Rd1 {[%clk 0:00:43.4]} 21... Bxd3+ {[%clk 0:01:41.5]} 22.
Rxd3 {[%clk 0:00:45.3]} 22... Qxa2 {[%clk 0:01:41.9]} 23. g4 {[%clk 0:00:34.2]}
23... Rac8 {[%clk 0:01:31.1]} 24. Qxg5 {[%clk 0:00:23.4]} 24... Qxb2 {[%clk
0:01:18.5]} 25. Kg2 {[%clk 0:00:18.6]} 25... Rc2 {[%clk 0:01:13.3]} 26. Rf3
{[%clk 0:00:17.7]} 26... Qxd4 {[%clk 0:00:46.7]} 27. Rxf6 {[%clk 0:00:16.4]}
27... Qe4+ {[%clk 0:00:43.7]} 28. Rf3 {[%clk 0:00:10.1]} 28... Rdd2 {[%clk
0:00:40.5]} 29. Qh4 {[%clk 0:00:06.4]} 29... Rxf2+ {[%clk 0:00:36.7]} 30. Qxf2
{[%clk 0:00:08.3]} 30... Rxf2+ {[%clk 0:00:37.1]} 31. Kxf2 {[%clk 0:00:10.2]}
31... Qxe5 {[%clk 0:00:38.2]} 32. Rc1 {[%clk 0:00:11.1]} 32... Qb2+ {[%clk
0:00:37.5]} 0-1